Cogmind - Beta 14 @@@ ROGUE MODE // 2024.09.17 @ 14:29:49 Player: Briefgarde Result: Destroyed by as-61786 with Assembled Heavy Rifle Performance ------------- Evolutions (0) 0 Regions Visited (4) 800 Robots Destroyed (25) 125 Value Destroyed (585) 585 Prototype IDs (1) 20 Alien Tech Used (0) 0 Bonus (300) 300 TOTAL SCORE: 1830 Bonus ------- Aligned with FarCom 300 Cogmind --------- Core Integrity 0/250 Matter 194/300 Energy 246/250 System Corruption 0% Temperature Cool (2) Movement Treading (240) Ox1 Location -9/Mines Parts ------- > --- POWER (1) -------- Ion Engine > --- PROPULSION (2) --- Improved Treads Improved Treads > --- UTILITY (2) ------ High-capacity Storage Unit Signal Interpreter > --- WEAPON (2) ------- Improved Light Cannon Rocket Launcher > --- INVENTORY (20) --- Improved Treads Improved Treads Compact Wheel Small Storage Unit Structural Scanner Sensor Array EM Pulse Gun Beam Cannon Beam Cannon Improved Light Cannon AWS/Autocannon Datajack Mining Laser Peak State ------------ > --- POWER ------------ Ion Engine > --- PROPULSION ------- Improved Treads Improved Treads > --- UTILITY ---------- High-capacity Storage Unit Signal Interpreter > --- WEAPON ----------- Improved Light Cannon Improved Light Cannon > --- INVENTORY -------- Improved Treads Improved Treads Compact Wheel Small Storage Unit Structural Scanner Sensor Array EM Pulse Gun Beam Cannon Beam Cannon AWS/Autocannon Rocket Launcher Datajack Mining Laser [Rating: 15] Favorites ----------- Power Ion Engine Engine Ion Engine Propulsion Improved Treads Treads Improved Treads Leg Aluminum Leg Wheel Compact Wheel Utility High-capacity Storage Unit Device Structural Scanner Storage High-capacity Storage Unit Processor Signal Interpreter Weapon Improved Light Cannon Energy Gun EM Pulse Gun Ballistic Gun Light Assault Rifle Ballistic Cannon Improved Light Cannon Launcher Rocket Launcher Impact Weapon Hammer Build | -11 -10 -10 -10 -9 ------- Run | Yrd Mat Min Exi Min Slots Evolved . | . . . . . Power . | . . . . . Propulsion . | . . . . . Utility . | . . . . . Weapon . | . . . . . Parts Attached 32 | 6 22 2 1 1 Power 4 | 1 2 1 . . Engine 4 | 1 2 1 . . Core . | . . . . . Reactor . | . . . . . Propulsion 11 | 2 9 . . . Treads 5 | 1 4 . . . Leg 4 | . 4 . . . Wheel 2 | 1 1 . . . Hover . | . . . . . Flight . | . . . . . Utility 5 | 1 3 . 1 . Device 2 | . 2 . . . Storage 2 | 1 1 . . . Processor 1 | . . . 1 . Hackware . | . . . . . Protection . | . . . . . Artifact . | . . . . . Weapon 12 | 2 8 1 . 1 Energy Gun 3 | . 3 . . . Energy Cannon . | . . . . . Ballistic Gun 4 | 2 2 . . . Ballistic Cannon 2 | . 1 1 . . Launcher 1 | . . . . 1 Special Weapon . | . . . . . Impact Weapon 2 | . 2 . . . Slashing Weapon . | . . . . . Piercing Weapon . | . . . . . Special Melee Weapon . | . . . . . Unidentified Prototypes 1 | . . . 1 . Parts Lost 8 | . 7 1 . . Power 2 | . 1 1 . . Propulsion 3 | . 3 . . . Utility 1 | . 1 . . . Weapon 2 | . 2 . . . Highest Loss Streak 3 | . 3 1 . . To Critical Strikes . | . . . . . Average Slot Usage (%) 97 | . 96 99 99 100 Engine 13 | . 13 13 14 14 Treads 20 | . 14 28 28 28 Leg 5 | . 10 . . . Wheel 1 | . 2 . . . Device 11 | . 10 14 8 . Storage 14 | . 14 14 14 14 Processor 1 | . . . 5 14 Energy Gun 3 | . 5 . . . Ballistic Gun 6 | . 11 . . . Ballistic Cannon 14 | . 4 27 28 14 Impact Weapon 3 | . 6 . . . Peak Build Rating 15 | 6 11 12 15 15 Average Rating 9 | 4 8 11 13 15 On Entrance 8 | . 6 11 12 15 Naked Turns . | . . . . . Heaviest Build 54 | 11 52 54 54 53 Greatest Support 46 | 20 46 46 46 46 Greatest Overweight (x) 4 | . 4 1 1 1 Average Overweight (x) 1 | . 1 1 1 1 Largest Inventory Capacity 20 | 8 20 20 20 20 Average Capacity 18 | 7 18 20 20 20 Most Carried 16 | 6 12 13 16 15 Average Carried 10 | 4 8 11 13 15 Final Capacity 20 | 8 20 20 20 20 Final Carried 15 | 6 12 13 15 15 Class Distribution -------------------- 100% | Mutant Dominant Class ---------------- Mutant | -10/Materials Mutant | -10/Mines Mutant | -10/Exiles Mutant | -9/Mines Resources | -11 -10 -10 -10 -9 ----------- Run | Yrd Mat Min Exi Min Matter Collected 704 | 237 387 72 . 8 Remotely . | . . . . . Salvage Created 735 | . 570 97 . 68 Parts 49 | . 33 10 . 6 Haulers Intercepted 1 | . 1 . . . Recyclers Shooed 1 | . 1 . . . Parts Field Recycled . | . . . . . Retrieved Matter . | . . . . . Parts Self-Destructed . | . . . . . Prevented . | . . . . . Kills | -11 -10 -10 -10 -9 ------- Run | Yrd Mat Min Exi Min Combat Hostiles Destroyed 36 | . 13 5 . 18 Guns 12 | . 12 . . . Cannons 7 | . . 5 . 2 AOE 17 | . 1 . . 16 Classes Destroyed 6 | . 4 1 . 1 Worker 1 | . . 1 . . Hauler 1 | . 1 . . . Operator 2 | . 2 . . . Swarmer 9 | . 3 3 . 3 Grunt 12 | . 10 2 . . Assembled 15 | . . . . 15 Best Kill Streak 18 | . 3 4 . 18 Combat Bots Only 18 | . 3 3 . 18 Max Kills in Single Turn 9 | . 1 2 . 9 Gunslinging . | . . . . . Exploded 9 | . 1 . . 9 Melee . | . . . . . Uniques/NPCs Destroyed . | . . . . . Combat | -11 -10 -10 -10 -9 -------- Run | Yrd Mat Min Exi Min Hostile Shots Fired 138 | . 83 37 . 18 Missed 36 | . 20 11 . 5 Damage Taken 1454 | . 805 322 . 327 Core 258 | . 118 70 . 70 Absorbed by Shields . | . . . . . Core Remaining (%) 100 | 100 . . . . Volleys Fired 78 | . 61 13 . 4 Largest 2 | . 2 2 . 2 Hottest 78 | . 60 78 . 72 Shots Fired 145 | . 117 20 . 8 Gun 116 | . 116 . . . Cannon 25 | . 1 20 . 4 Launcher 4 | . . . . 4 Special . | . . . . . Kinetic 127 | . 103 20 . 4 Thermal . | . . . . . Explosive 4 | . . . . 4 Electromagnetic 14 | . 14 . . . Robot Hit Streak 14 | . 14 9 . 7 Robot Miss Streak 2 | . 2 2 . . Penetration Max . | . . . . . Secondary Targets . | . . . . . Shots Hit Robots 96 | . 80 15 . 1 Core Hits 70 | . 32 6 . 32 Critical Kills . | . . . . . Critical Parts Destroyed 1 | . 1 . . . Critical Strikes 3 | . 1 2 . . Destroy 1 | . 1 . . . Blast 2 | . . 2 . . Melee Attacks 9 | . 9 . . . Impact 9 | . 9 . . . Slashing . | . . . . . Piercing . | . . . . . Sneak Attacks 2 | . 2 . . . Combat Hostiles . | . . . . . Follow-up Attacks . | . . . . . Damage Inflicted 2408 | . 998 364 . 1046 Guns 773 | . 773 . . . Cannons 426 | . 20 364 . 42 Explosions 1123 | . 119 . . 1004 Melee 86 | . 86 . . . Ramming . | . . . . . Kinetic 1070 | . 664 364 . 42 Thermal 119 | . 119 . . . Explosive 1004 | . . . . 1004 Electromagnetic 129 | . 129 . . . Impact 86 | . 86 . . . Slashing . | . . . . . Piercing . | . . . . . Highest Corruption . | . . . . . Average Corruption . | . . . . . Corruption Purged . | . . . . . Corruption Blocked . | . . . . . Overload Shots . | . . . . . Overflow Damage 41 | . 24 5 . 12 Projectiles 5 | . . 5 . . Explosions 30 | . 18 . . 12 Melee 6 | . 6 . . . Knockbacks 5 | . . 5 . . Impact . | . . . . . Kinetic 5 | . . 5 . . Secondary . | . . . . . Self-Inflicted Damage 83 | . 53 . . 30 Shots 2 | . 1 . . 1 Rammed . | . . . . . Targets Rammed . | . . . . . Kicked . | . . . . . Crushed . | . . . . . Highest Temperature 100 | . 100 54 . 48 Average Temperature 22 | . 24 18 . 25 Received Heat Transfer 609 | . 426 183 . . Siege Activations . | . . . . . Robots Corrupted 1 | . 1 . . . Combat Hostiles . | . . . . . Parts Fried 2 | . 2 . . . Impact Corruptions 1 | . 1 . . . Robots Melted . | . . . . . Combat Hostiles . | . . . . . Parts Melted . | . . . . . Heat Transferred 50 | . 50 . . . Parts Sabotaged . | . . . . . Parts Stolen . | . . . . . Parts Stripped . | . . . . . Power Chain Reactions 1 | . 1 . . . Alert | -11 -10 -10 -10 -9 ------- Run | Yrd Mat Min Exi Min Peak Influence 250 | . 250 75 . 112 Initial . | . . . . . Average 57 | . 65 44 . 94 Maximum Alert Level 1 | . 1 . . . Low Security (%) 96 | 100 94 100 . 100 Level 1 3 | . 5 . . . Level 2 . | . . . . . Level 3 . | . . . . . Level 4 . | . . . . . Level 5 . | . . . . . High Security . | . . . . . Max Security . | . . . . . Squads Dispatched 3 | . 3 . . . Investigation 1 | . 1 . . . Extermination . | . . . . . Reinforcement 2 | . 2 . . . Assault . | . . . . . Garrison . | . . . . . Intercept . | . . . . . Searches Triggered . | . . . . . Construction Impeded . | . . . . . Haulers Reinforced . | . . . . . Active Scanning Responses . | . . . . . Cargo Convoy Interrupts . | . . . . . Stealth | -11 -10 -10 -10 -9 --------- Run | Yrd Mat Min Exi Min Distress Signals 2 | . 2 . . . Communications Jammed . | . . . . . Distress Signals . | . . . . . Times Spotted 48 | . 27 5 . 16 Peak Tracking Total 20 | . 5 3 . 20 Tactical Retreats 2 | . 1 . . 1 Traps | -11 -10 -10 -10 -9 ------- Run | Yrd Mat Min Exi Min Traps Triggered 2 | . 2 . . . Indirectly . | . . . . . Trap Hack Attempts . | . . . . . Triggered . | . . . . . Disarmed . | . . . . . Reprogrammed . | . . . . . Reused . | . . . . . Traps Extracted . | . . . . . Installed . | . . . . . Triggered . | . . . . . Machines | -11 -10 -10 -10 -9 ---------- Run | Yrd Mat Min Exi Min Machines Disabled . | . . . . . Max in Single Turn . | . . . . . Machines Repaired . | . . . . . Machines Dismantled . | . . . . . Machines Sabotaged . | . . . . . Overloaded Fab Kills . | . . . . . Hacking | -11 -10 -10 -10 -9 --------- Run | Yrd Mat Min Exi Min Machines Accessed 5 | . 5 . . . Terminals 5 | . 5 . . . Fabricators . | . . . . . Repair Stations . | . . . . . Recycling Units . | . . . . . Scanalyzers . | . . . . . Garrison Access . | . . . . . Total Hacks 7 | . 7 . . . Successful 4 | . 4 . . . Failed 3 | . 3 . . . Catastrophic 1 | . 1 . . . Database Lockouts . | . . . . . Manual 9 | . 8 . 1 . Terminals 7 | . 7 . . . Fabricators . | . . . . . Repair Stations . | . . . . . Recycling Units . | . . . . . Scanalyzers . | . . . . . Garrison Access . | . . . . . Terminal Hacks 2 | . 2 . . . Robot Analysis 2 | . 2 . . . Fabricator Hacks . | . . . . . Repair Station Hacks . | . . . . . Recycling Unit Hacks . | . . . . . Scanalyzer . | . . . . . Garrison Access Hacks . | . . . . . Unauthorized Hacks 2 | . 2 . . . Terminals 2 | . 2 . . . Assimilate 2 | . 2 . . . Fabricators . | . . . . . Repair Stations . | . . . . . Recycling Units . | . . . . . Scanalyzers . | . . . . . Garrison Access . | . . . . . Data Cores Recovered . | . . . . . Used . | . . . . . Hacking Detections 3 | . 3 . . . Full Trace Events . | . . . . . Feedback Events . | . . . . . Feedback Blocked . | . . . . . Robot Schematics Acquired . | . . . . . Robots Built . | . . . . . Authchips . | . . . . . Time . | . . . . . Total Robot Build Rating . | . . . . . Part Schematics Acquired . | . . . . . Parts Built . | . . . . . Authchips . | . . . . . Time . | . . . . . Total Part Build Rating . | . . . . . Parts Repaired . | . . . . . Time . | . . . . . Parts Recycled . | . . . . . Recycled Matter . | . . . . . Retrieved Matter . | . . . . . Retrieved Components . | . . . . . Parts Scanalyzed . | . . . . . Part Schematics Acquired . | . . . . . Parts Damaged . | . . . . . Bothacking | -11 -10 -10 -10 -9 ------------ Run | Yrd Mat Min Exi Min Used RIF Installer . | . . . . . Robots Hacked . | . . . . . Non-combat . | . . . . . Combat . | . . . . . Robot Hacks Applied . | . . . . . Relay Couplers Released . | . . . . . Fabnet Peak Effective % . | . . . . . Robots Rewired . | . . . . . Allies Hacked . | . . . . . Hacks Repelled . | . . . . . Allies | -11 -10 -10 -10 -9 -------- Run | Yrd Mat Min Exi Min Total Allies 1 | . . 1 . . Largest Group 1 | . . 1 . . Highest-Rated Group 31 | . . 31 . . Highest-Rated Ally 31 | . . 31 . . Total Orders . | . . . . . Ally Attacks . | . . . . . Total Damage . | . . . . . Kills . | . . . . . Allies Corrupted . | . . . . . Allies Melted . | . . . . . Intel | -11 -10 -10 -10 -9 ------- Run | Yrd Mat Min Exi Min Robot Analysis Total 2 | . 2 . . . Derelict Logs Recovered 1 | . . 1 . . Drone Launches . | . . . . . Drone Recoveries . | . . . . . Exploration | -11 -10 -10 -10 -9 ------------- Run | Yrd Mat Min Exi Min Turns Passed 2985 | 96 1617 708 543 21 Spaces Moved 1144 | 54 582 279 225 4 Core 1 | 1 . . . . Treads 849 | 47 294 279 225 4 Legs 177 | . 177 . . . Wheels 117 | 6 111 . . . Hover . | . . . . . Flight . | . . . . . Fastest Speed 50 | 50 95 240 240 240 Average Speed 224 | 151 218 240 240 240 Slowest Speed 260 | 160 260 240 240 240 Overloaded Moves . | . . . . . Propulsion Burnouts . | . . . . . Robots Hopped . | . . . . . Cave-ins Triggered . | . . . . . Time Travels 1 | . . . 1 . Exploration Rate (%) 45 | 4 90 64 61 7 Regions Visited 4 Branch Regions 3 Pre-discovered Areas 1 | . . 1 . . Known Exits Taken 1 | . . . 1 . Unknown Exits Taken 3 | 1 1 1 . . Scrap Searched . | . . . . . Spaces Dug 4 | . 4 . . . Terrain Destroyed 51 | . 6 1 . 44 Melee 4 | . 4 . . . Projectile 1 | . . 1 . . AOE 46 | . 2 . . 44 Terrain Rammed . | . . . . . Walls Destroyed . | . . . . . Machines Disabled . | . . . . . Actions | -11 -10 -10 -10 -9 --------- Run | Yrd Mat Min Exi Min Total 1407 | 65 805 298 230 9 Wait 110 | . 107 3 . . Move 1140 | 53 581 278 224 4 Hop . | . . . . . Pick Up 25 | 6 15 2 2 . Fast Attach 11 | 6 5 . . . Attach 9 | . 7 1 1 . Detach 1 | . . . 1 . Swap 12 | . 10 1 . 1 Drop 11 | . 10 . 1 . Fire 78 | . 61 13 . 4 Melee 9 | . 9 . . . Ram . | . . . . . Kick . | . . . . . Crush . | . . . . . Escape Stasis . | . . . . . Rewire 1 | . . . 1 . Trap . | . . . . . Miscellaneous . | . . . . . Route ------- -11/Scrapyard -10/Materials (discovered 3 exits: [*Mat x2] / [*Min]) -10/Mines (discovered 2 exits: [*Mat] / *Exi) -10/Exiles -9/Mines History --------- Turn | Location | Event 16 | -11/Scrapyard | Discovered new exit (range 14) 97 | -11/Scrapyard | Entered Materials 305 | -10/Materials | Discovered new exit (range 16) 308 | -10/Materials | Build established: Mutant 467 | -10/Materials | Lost 3 parts (1n1u1w) 738 | -10/Materials | Discovered new exit (range 10) 978 | -10/Materials | Discovered new exit (range 10) 1714 | -10/Materials | Entered Mines 1721 | -10/Mines | Core integrity fell below 50% 1861 | -10/Mines | Found a hidden stash of uninstalled traps 1895 | -10/Mines | Received a Mining Laser from a helpful Derelict 2040 | -10/Mines | Learned location of Mines (-9) 2323 | -10/Mines | Discovered new exit (range 13) 2363 | -10/Mines | Received a Rocket Launcher from a helpful Derelict 2413 | -10/Mines | Deemed a non-threat by the Exiles lab entrance 2413 | -10/Mines | Discovered new exit (range 5) 2422 | -10/Mines | Entered Exiles 2485 | -10/Exiles | Met 8R-AWN 2523 | -10/Exiles | Met EX-HEX 2637 | -10/Exiles | Met EX-BIN 2663 | -10/Exiles | Aligned with FarCom system 2666 | -10/Exiles | Given EX-Vault access code 2721 | -10/Exiles | Opened EX-Vault 2731 | -10/Exiles | Found Prototype Device 2732 | -10/Exiles | Identified Chronowheel 2732 | -10/Exiles | Activated Chronowheel 2732 | -10/Exiles | Spacetime reconverged on an earlier point 2740 | -10/Exiles | Found Prototype Ballistic Cannon 2785 | -10/Exiles | Warned to stay clear of 0b10 Research branches 2852 | -10/Exiles | Met EX-DEC 2934 | -10/Exiles | Discovered new exit (range 14) 2963 | -10/Exiles | Identified exit to Mines 2965 | -10/Exiles | Left Exiles lab with AWS/Autocannon 2965 | -10/Exiles | Entered Mines 2966 | -9/Mines | Assembled infested the area 2983 | -9/Mines | Core integrity fell below 20% 2986 | -9/Mines | Destroyed by as-61786 with Assembled Heavy Rifle Last Messages --------------- GOAL=ESCAPE 02965_ Receiving FarCom transmissions... 02966_ ALERT: Infestation in the mines, dispatching Demolisher response squad. 02966_ S-10 Pest destroyed. [Achievement: Hunted] 02970_ as-99708 destroyed. [Achievement: Quick And Dirty] 02970_ as-83786 destroyed. 02970_ as-69090 destroyed. 02973_ as-46348 destroyed. 02973_ as-35635 destroyed. 02976_ as-86941 destroyed. 02976_ as-18267 destroyed. [Achievement: Exterminator] 02981_ Acquired 8 matter. 02982_ C-30 ARC bursts open, deploying its payload. 02982_ D-53 Grenadier unfolds itself. 02985_ The unstable cave ceiling collapses. Map ----- +----------------------------------------------------+ | ??????????????????????????????????????? | | ??????????????????????????????????????? | | ??????????????????????????????????????? | | ??????????????????????????????????????? | | ??????????????????????????????????????? | | ??????????????????????????????????????? | | ??????????????????????????????????????? | | ??????????????????????????????????????? | | ??????????????????????????????????????? | | ??????????????????????????????????????? | | ??????????????????????????????????????? | | ??????????????????????????????????????? | | ??????????????????????????????????????? | | ??????????????????????????????????????? | | ??????????????????????????????????????? | | ??????????????????????????????????????? | | ??????????????????????????????????????? | | ??????????????????????????????????????? | | ??????????????????????????????????????? | | ??????????????????????????????????????? | | ????????????######????????????????????? | | # ?????????## # #####????????????????? | | ?#